bitfinex/quotes_SOLUSD_20240613
["timestamp","ask_amount","ask_price","bid_price","bid_amount"]
[1718295259518,253.1,147.76,147.73,2.5045]
[1718295259721,253.1,147.76,147.72,2.5046]
[1718295259722,255.604,147.76,147.72,2.5046]
[1718295260122,255.604,147.76,147.71,2.5048]
[1718295260327,255.604,147.76,147.72,2.5047]
[1718295261119,253.1,147.76,147.71,2.5048]
[1718295261325,255.6041,147.76,147.71,2.5048]
[1718295261525,253.1,147.76,147.7,10.0199]
[1718295261823,253.1,147.76,147.67,10.0219]
[1718295262125,2.5045,147.74,147.67,15.0329]
[1718295262300,2.5046,147.73,147.65,30.4417]
[1718295262627,2.5046,147.73,147.68,2.5053]
[1718295262804,2.5044,147.74,147.69,2.5052]
[1718295263305,2.5045,147.73,147.69,2.5052]
[1718295263503,2.5046,147.73,147.69,2.5051]
[1718295263723,2.5045,147.74,147.69,2.5051]
[1718295263919,2.5046,147.73,147.69,2.5051]
[1718295264197,2.5049,147.71,147.66,2.5056]
[1718295264438,2.5047,147.72,147.67,2.5054]
[1718295264636,2.505,147.71,147.66,2.5056]
[1718295264822,2.5047,147.72,147.64,33.1993]
[1718295265017,2.5049,147.71,147.67,2.5054]
[1718295265208,45.0,147.73,147.67,2.5054]
[1718295265400,2.5047,147.72,147.67,2.5054]
[1718295265713,2.5047,147.72,147.68,2.5053]
[1718295265909,2.5049,147.71,147.67,2.5055]
[1718295266260,7.5148,147.71,147.63,2.5061]
[1718295266399,7.5148,147.71,147.62,2.5063]
[1718295266400,2.5058,147.66,147.62,2.5063]
[1718295266725,2.5058,147.66,147.61,2.5065]
[1718295267029,2.5058,147.66,147.58,10.0283]
[1718295267208,2.5058,147.66,147.56,47.349]
[1718295267209,2.5062,147.64,147.56,21.919]
[1718295267537,2.5062,147.64,147.59,2.5068]
[1718295267824,2.5059,147.65,147.6,2.5067]
[1718295268507,2.5061,147.64,147.59,2.5068]
[1718295269199,2.5059,147.65,147.6,2.5066]
[1718295269406,47.5058,147.66,147.61,2.5065]
[1718295269909,2.5059,147.65,147.61,2.5065]
[1718295270126,47.5058,147.66,147.61,2.5065]
[1718295270513,2.5059,147.65,147.6,2.5066]
[1718295271326,2.5061,147.64,147.6,2.5066]
[1718295271538,2.5061,147.64,147.59,2.5068]
[1718295271838,2.5063,147.63,147.58,2.507]
[1718295272044,45.0,147.66,147.56,15.4317]
[1718295272218,45.0,147.66,147.6,2.5066]
[1718295272219,2.5059,147.65,147.6,2.5066]
[1718295272938,45.0,147.66,147.57,10.029]
[1718295273142,2.5058,147.66,147.61,2.5065]
[1718295273517,2.5059,147.65,147.6,2.5067]
[1718295273849,2.5064,147.62,147.57,2.5071]
[1718295274033,2.5066,147.61,147.57,2.5072]
[1718295274642,2.5065,147.62,147.57,2.5072]
[1718295275035,2.5064,147.62,147.57,2.5071]
[1718295275430,47.5063,147.63,147.58,2.507]
[1718295275640,47.5063,147.63,147.58,2.5071]
[1718295276436,45.0,147.63,147.52,47.453]
[1718295276745,6.4946,147.64,147.6,2.5066]
[1718295277417,6.4946,147.64,147.56,10.0296]
[1718295277829,2.5063,147.63,147.58,2.507]
[1718295278031,2.5065,147.62,147.55,25.43]
[1718295278223,2.5063,147.63,147.58,2.5071]
[1718295278428,9.0007,147.64,147.59,2.5069]
[1718295279444,6.4946,147.64,147.6,17.841163]
[1718295279631,9.0007,147.64,147.6,17.841163]
[1718295280747,6.3601,147.68,147.6,27.867863]
[1718295281042,6.3601,147.68,147.6,17.841163]
[1718295281244,2.5062,147.63,147.6,17.841163]
[1718295281720,5.012,147.65,147.6,17.841163]
[1718295281921,17.5403,147.66,147.6,17.841163]
[1718295282230,2.5065,147.62,147.6,17.841163]
[1718295282426,2.5063,147.63,147.6,17.841163]
[1718295282741,2.5061,147.64,147.6,17.841163]
[1718295283146,2.5061,147.64,147.6,20.347863]
[1718295283447,0.17,147.65,147.6,17.841163]
[1718295283642,5.0123,147.64,147.6,17.841163]
[1718295283841,2.5065,147.62,147.6,17.841163]
[1718295284418,2.506,147.65,147.6,20.347863]
[1718295284715,25.4019,147.65,147.6,17.841163]
[1718295284938,2.5066,147.61,147.6,17.841163]
[1718295285340,2.6766,147.61,147.6,17.841163]
[1718295285541,3.0166,147.61,147.6,17.841163]
[1718295285743,2.6766,147.61,147.6,17.841163]
[1718295285928,2.5066,147.61,147.6,17.841163]
[1718295287854,7.5198,147.61,147.6,17.841163]
[1718295288179,2.6766,147.61,147.6,17.841163]
[1718295288336,2.5066,147.61,147.6,17.841163]
[1718295289467,20.0,147.64,147.6,17.841163]
[1718295289752,2.5065,147.62,147.6,17.841163]
[1718295290229,2.5063,147.63,147.6,17.841163]
[1718295290431,7.5175,147.66,147.6,17.841163]
[1718295290725,2.5064,147.62,147.6,17.841163]
[1718295291956,2.5065,147.62,147.6,17.841163]
[1718295292152,2.5066,147.61,147.6,17.841163]
[1718295292338,2.5065,147.62,147.6,17.841163]
[1718295292736,2.5066,147.61,147.6,17.841163]
[1718295293752,2.5064,147.62,147.6,17.841163]
[1718295293932,2.5066,147.61,147.6,17.841163]
[1718295295152,0.17,147.63,147.6,17.841163]
[1718295295356,2.5063,147.63,147.6,17.841163]
[1718295296285,2.5064,147.62,147.6,17.841163]
[1718295297147,2.5063,147.63,147.6,17.841163]
[1718295297536,3.0162,147.64,147.6,17.841163]
[1718295297743,2.5063,147.63,147.6,17.841163]
[1718295298748,2.5064,147.62,147.6,17.841163]
[1718295298942,2.5066,147.61,147.6,17.841163]
[1718295299160,2.5065,147.62,147.6,17.841163]
[1718295299375,2.5066,147.61,147.6,17.841163]
[1718295299539,34.066,147.61,147.6,17.841163]
[1718295299746,34.236,147.61,147.6,17.841163]
[1718295300255,24.2096,147.61,147.6,17.841163]
[1718295300462,16.6898,147.61,147.6,17.841163]
[1718295300755,54.626,147.61,147.6,17.841163]
[1718295300961,99.626,147.61,147.6,17.841163]
[1718295301463,5.0128,147.63,147.6,17.841163]
[1718295301666,2.5066,147.61,147.6,17.841163]
[1718295301962,15.2096,147.61,147.6,17.841163]
[1718295302266,197.6251,147.61,147.6,17.841163]
[1718295302568,197.6251,147.61,147.6,2.96e-05]
[1718295302737,217.6251,147.61,147.6,2.96e-05]
[1718295304055,117.6251,147.61,147.6,2.96e-05]
[1718295304548,2.5063,147.63,147.6,2.96e-05]
[1718295304863,2.5066,147.61,147.6,2.96e-05]
[1718295305038,23.9869,147.65,147.6,2.96e-05]
[1718295305239,15.3931,147.66,147.6,2.96e-05]
[1718295305434,5.0118,147.65,147.6,2.96e-05]
[1718295305657,2.5063,147.63,147.6,2.96e-05]
[1718295306168,10.0243,147.65,147.6,2.96e-05]
[1718295306365,7.5198,147.61,147.6,2.96e-05]
[1718295306588,2.5066,147.61,147.6,2.96e-05]
[1718295306871,7.5198,147.61,147.6,2.96e-05]
[1718295307042,25.066,147.61,147.6,2.96e-05]
[1718295307244,45.626,147.61,147.6,2.96e-05]
[1718295307563,91.136,147.61,147.6,2.96e-05]
[1718295307866,48.1866,147.61,147.6,2.96e-05]
[1718295308040,3.1866,147.61,147.6,2.96e-05]
[1718295308241,2.6766,147.61,147.6,2.96e-05]
[1718295308444,2.8466,147.61,147.6,2.96e-05]
[1718295308654,60.7196,147.61,147.6,2.96e-05]
[1718295309148,90.746,147.61,147.6,2.96e-05]
[1718295309657,111.136,147.61,147.6,2.96e-05]
[1718295310651,68.1866,147.61,147.6,2.96e-05]
[1718295310867,2.5066,147.61,147.6,2.96e-05]
[1718295311748,15.0396,147.61,147.6,2.96e-05]
[1718295311978,2.5066,147.61,147.6,2.96e-05]
[1718295312349,127.84096873,147.68,147.6,2.96e-05]
[1718295312675,17.5428,147.64,147.6,2.96e-05]
[1718295312877,5.0125,147.63,147.6,2.96e-05]
[1718295313182,2.5066,147.61,147.6,2.96e-05]
[1718295313856,2.6766,147.61,147.6,2.96e-05]
[1718295314183,3.1866,147.61,147.6,2.96e-05]
[1718295314479,48.1866,147.61,147.6,2.96e-05]
[1718295315479,0.17,147.61,147.6,2.96e-05]
[1718295315776,0.17,147.63,147.6,2.96e-05]
[1718295316001,2.5066,147.61,147.6,2.96e-05]
[1718295316308,3.1866,147.61,147.6,2.96e-05]
[1718295316465,48.1866,147.61,147.6,2.96e-05]
[1718295317671,70.746,147.61,147.6,2.96e-05]
[1718295317883,191.136,147.61,147.6,2.96e-05]
[1718295318057,233.4853,147.61,147.6,2.96e-05]
[1718295318675,258.9453,147.61,147.6,2.96e-05]
[1718295318865,2.5085,147.5,147.46,16.4515]
[1718295319270,0.17,147.53,147.46,16.4515]
[1718295319571,45.51,147.53,147.46,16.4515]
[1718295319966,2.5084,147.51,147.46,16.4515]
[1718295320169,2.5085,147.5,147.46,16.4515]
[1718295320870,2.5083,147.51,147.46,18.9606]
[1718295321258,2.6782,147.52,147.46,18.9606]
[1718295321470,0.17,147.52,147.46,16.4515]
[1718295321665,5.0142,147.58,147.48,5.0174]
[1718295321877,2.5078,147.54,147.46,21.4696]
[1718295322084,2.5078,147.54,147.48,2.5086]
[1718295322279,2.508,147.53,147.48,2.5086]
[1718295322476,5.0153,147.55,147.48,2.5087]
[1718295322676,30.4197,147.57,147.46,16.4515]
[1718295322677,2.5085,147.5,147.46,16.4515]
[1718295322879,2.5082,147.52,147.46,16.4515]
[1718295323059,2.5082,147.52,147.47,2.5089]
[1718295323573,30.4199,147.56,147.46,16.4515]
[1718295323574,0.51,147.53,147.48,2.5087]
[1718295323774,2.5085,147.5,147.46,16.4515]
[1718295323959,5.1863,147.52,147.46,16.4515]
[1718295323960,50.0167,147.51,147.46,16.4515]
[1718295324160,0.51,147.5,147.46,16.4515]
[1718295324386,3.0185,147.5,147.46,16.4515]
[1718295324588,47.6783,147.51,147.46,18.9605]
[1718295324786,2.6783,147.51,147.46,18.9605]
[1718295324989,2.5085,147.5,147.46,16.4515]
[1718295325888,0.17,147.5,147.46,16.4515]
[1718295326196,0.17,147.49,147.42,19.1405]
[1718295326370,2.509,147.47,147.42,19.1405]
[1718295326575,2.5091,147.46,147.42,16.6308]
[1718295326888,2.5091,147.46,147.39,12.5513]
[1718295326889,2.5096,147.44,147.39,2.5102]
[1718295327272,45.68,147.45,147.38,21.2878]
[1718295327478,5.019,147.44,147.38,21.2878]
[1718295327806,2.5099,147.42,147.38,21.2878]
[1718295328023,2.51,147.41,147.38,21.2878]
[1718295328298,45.17,147.43,147.38,21.2878]
[1718295328299,0.17,147.42,147.38,21.2878]
[1718295328505,0.17,147.43,147.39,2.5103]
[1718295328671,2.5097,147.43,147.38,23.7982]
[1718295329108,2.5097,147.43,147.38,21.2878]
[1718295329281,2.5095,147.44,147.38,21.2878]
[1718295329481,3.1894,147.45,147.4,2.5101]
[1718295329785,3.1894,147.45,147.38,21.2878]
[1718295329786,0.34,147.44,147.39,2.5102]
[1718295329998,2.8495,147.44,147.39,2.5102]
[1718295330702,2.8495,147.44,147.38,23.7982]
[1718295330908,2.8495,147.44,147.39,2.5102]
[1718295331236,2.5091,147.46,147.41,2.5099]
[1718295331519,2.5089,147.48,147.42,2.5097]
[1718295331683,258.1164,147.52,147.41,7.5298]
[1718295331884,2.5087,147.49,147.44,2.5094]
[1718295332085,125.46,147.56,147.46,15.5967]
[1718295332086,105.0151,147.56,147.46,15.5967]
[1718295332325,2.5079,147.53,147.48,2.5087]
[1718295332529,120.39,147.54,147.46,15.5967]
[1718295332818,22.5755,147.51,147.46,15.5967]
[1718295333024,2.5085,147.5,147.46,15.5967]
[1718295333197,2.5086,147.49,147.46,15.5967]
[1718295333391,2.5085,147.5,147.46,15.5967]
[1718295333594,2.5086,147.49,147.46,15.5967]
[1718295333837,2.5089,147.47,147.46,15.5967]
[1718295333986,12.5425,147.5,147.42,2.5097]
[1718295333987,2.5092,147.46,147.42,15.7103]
[1718295334692,2.5093,147.45,147.42,15.7103]
[1718295335201,50.188,147.47,147.42,18.22]
[1718295335202,2.679,147.47,147.42,18.22]
[1718295336033,2.5091,147.46,147.42,15.7103]
[1718295336529,0.17,147.46,147.38,16.5116]
[1718295336686,0.17,147.44,147.38,16.5116]
[1718295336884,2.5099,147.42,147.38,16.5116]
[1718295337118,2.51,147.41,147.38,16.5116]
[1718295337288,2.5099,147.42,147.38,16.5116]
[1718295338634,2.5099,147.42,147.37,0.04498215]
[1718295338798,0.17,147.39,147.37,0.04498215]
[1718295338998,3.1904,147.39,147.37,0.04498215]
[1718295339336,2.6804,147.39,147.37,0.04498215]
[1718295341111,0.34,147.41,147.37,0.04498215]
[1718295341352,2.85,147.41,147.37,0.04498215]
[1718295342226,2.5103,147.39,147.37,0.04498215]
[1718295342721,2.5105,147.38,147.37,0.04498215]
[1718295342895,3.1905,147.38,147.37,0.04498215]
[1718295343106,48.1905,147.38,147.37,0.04498215]
[1718295343516,53.2115,147.38,147.37,0.04498215]
[1718295344016,90.785,147.38,147.37,0.04498215]
[1718295344197,111.175,147.38,147.37,0.04498215]
[1718295345242,45.6701,147.35,147.34,0.8410199]
[1718295345429,45.6701,147.35,147.27,15.3837]
[1718295345430,2.5117,147.31,147.27,15.3837]
[1718295345729,0.17,147.3,147.27,15.3837]
[1718295345923,0.17,147.3,147.21,10.0535]
[1718295345924,0.17,147.3,147.21,15.0802]
[1718295346133,0.34,147.3,147.25,2.5126]
[1718295346618,0.34,147.3,147.2,15.6325]
[1718295346619,0.34,147.3,147.2,28.1999]
[1718295346826,2.8519,147.3,147.24,2.5127]
[1718295347037,2.8519,147.3,147.22,5.0264]
[1718295347250,2.8519,147.3,147.25,2.5126]
[1718295347428,2.512,147.29,147.24,2.5128]
[1718295347831,2.5122,147.28,147.23,2.513]
[1718295348021,0.34,147.3,147.23,2.513]
[1718295348219,0.34,147.29,147.23,2.513]
[1718295348444,2.8523,147.28,147.22,2.5131]
[1718295348644,0.34,147.28,147.21,2.5133]
[1718295348868,2.8524,147.27,147.22,2.5132]
[1718295349141,0.17,147.26,147.21,2.5133]
[1718295349344,16.3837,147.34,147.2,15.6325]
[1718295349644,106.4037,147.38,147.2,45.4625]
[1718295349853,113.9352,147.38,147.26,10.0498]
[1718295350162,2.5109,147.36,147.3,2.5117]
[1718295350370,2.5109,147.36,147.31,2.5117]
[1718295350523,6.4037,147.38,147.3,2.5117]
[1718295350524,2.511,147.35,147.3,2.5117]
[1718295351030,2.511,147.35,147.29,2.5119]
[1718295351229,20.39,147.37,147.27,21.916]
[1718295351431,253.1,147.4,147.27,21.916]
[1718295351432,2.5118,147.31,147.27,15.5311]
[1718295352029,5.0231,147.32,147.27,15.5311]
[1718295352225,2.5118,147.31,147.27,15.5311]
[1718295353157,2.5117,147.31,147.24,6.3464]
[1718295353351,2.5117,147.31,147.26,2.5124]
[1718295353655,2.5117,147.31,147.26,2.5125]
[1718295353857,2.5117,147.31,147.25,2.5126]
[1718295354048,2.5117,147.31,147.26,2.5125]
[1718295355067,2.6816,147.32,147.26,2.5125]
[1718295355357,2.5112,147.34,147.28,2.5121]
[1718295355556,20.0,147.35,147.24,11.3719]
[1718295355860,2.5116,147.32,147.26,2.5125]
[1718295356061,20.0,147.35,147.28,2.512]
[1718295356239,2.5114,147.33,147.28,2.512]
[1718295356559,2.5115,147.32,147.27,2.5123]
[1718295357154,2.6814,147.33,147.28,2.5122]
[1718295357955,45.51,147.34,147.24,13.885]
[1718295357956,22.5111,147.35,147.27,5.0246]
[1718295358165,2.5112,147.34,147.29,2.5119]
[1718295358949,2.5109,147.36,147.31,2.5116]
[1718295359358,2.511,147.35,147.3,2.5117]
[1718295359744,10.0419,147.39,147.29,5.024]
[1718295360066,2.5105,147.38,147.33,2.5113]
[1718295360443,2.5106,147.37,147.32,2.5114]
[1718295360766,7.5305,147.4,147.31,6.2663]
[1718295360963,2.5107,147.37,147.32,2.5114]
[1718295361153,5.0207,147.39,147.32,2.5114]
[1718295361349,2.5106,147.37,147.32,2.5114]
[1718295361860,10.0387,147.43,147.35,2.5109]
[1718295362065,2.5102,147.4,147.35,2.5108]
[1718295362370,2.5105,147.38,147.33,22.5113]
[1718295362665,30.0399,147.42,147.31,23.8476]
[1718295362666,2.5102,147.4,147.35,2.5109]
[1718295362984,2.5102,147.4,147.32,32.5574]
[1718295362985,2.5104,147.39,147.34,2.5111]
[1718295363186,2.5107,147.37,147.32,22.5114]
[1718295363478,2.5104,147.39,147.34,2.5111]
[1718295363659,2.5105,147.38,147.33,2.5112]
[1718295363853,7.5306,147.4,147.32,22.5114]
[1718295364059,2.5107,147.37,147.32,22.5114]
[1718295364253,2.5107,147.37,147.33,2.5113]
[1718295364651,2.5107,147.37,147.32,22.5114]
[1718295364851,2.5105,147.38,147.33,2.5113]
[1718295365063,2.5105,147.38,147.33,2.5112]
[1718295365274,0.17,147.36,147.3,15.2567]
[1718295365442,2.5115,147.32,147.27,17.8869]
[1718295365641,0.17,147.36,147.27,15.3746]
[1718295365845,65.34,147.37,147.27,15.3746]
[1718295365846,45.34,147.37,147.3,17.5831]
[1718295366045,2.8507,147.37,147.32,2.5114]
[1718295366271,0.17,147.37,147.33,2.5112]
[1718295366488,0.17,147.38,147.32,5.023]
[1718295366782,2.5104,147.39,147.34,2.5111]
[1718295366983,25.7005,147.4,147.33,2.5113]
[1718295367144,2.5107,147.37,147.31,20.0]
[1718295367343,253.1,147.45,147.35,15.3899]
[1718295367573,5.0188,147.45,147.36,25.0214]
[1718295367748,2.5101,147.41,147.36,22.5108]
[1718295368272,5.0194,147.43,147.3,2.5117]
[1718295368273,2.511,147.35,147.3,2.5117]
[1718295368452,2.5112,147.34,147.29,2.5119]
[1718295368774,273.47,147.44,147.27,6.0483]
[1718295368980,2.5101,147.41,147.36,2.5107]
[1718295369181,2.5101,147.41,147.34,5.0222]
[1718295369390,2.5101,147.4,147.35,2.5109]
[1718295369677,2.5101,147.4,147.34,5.0222]
[1718295369678,2.51,147.41,147.36,2.5107]
[1718295369972,2.5101,147.4,147.36,2.5107]
[1718295370145,2.51,147.42,147.37,2.5106]
[1718295370346,2.51,147.41,147.37,2.5106]
[1718295370569,2.51,147.41,147.36,2.5107]
[1718295370774,2.51,147.41,147.37,2.5106]
[1718295370980,2.5099,147.42,147.37,2.5106]
[1718295371147,2.51,147.41,147.37,2.5106]
[1718295371356,2.5099,147.42,147.37,2.5106]
[1718295371548,5.5294,147.43,147.36,2.5108]
[1718295371784,5.5294,147.43,147.34,20.0]
[1718295371785,45.0,147.42,147.34,20.0]
[1718295371967,2.5106,147.38,147.34,22.5111]
[1718295372170,2.5102,147.4,147.35,2.5109]
[1718295372347,3.1901,147.41,147.36,2.5107]
[1718295373249,2.5101,147.4,147.36,2.5107]
[1718295373573,2.5103,147.39,147.34,22.511]
[1718295373953,0.68,147.41,147.35,2.5109]
[1718295373954,2.5102,147.4,147.35,2.5109]
[1718295374467,5.019,147.44,147.34,30.0447]
[1718295374660,2.5095,147.44,147.37,5.0212]
[1718295374871,2.5096,147.43,147.39,2.5102]
[1718295375086,21.0668,147.46,147.39,2.5102]
[1718295375087,2.5095,147.44,147.39,2.5102]
[1718295375301,5.0187,147.45,147.38,2.5104]
[1718295375464,5.0187,147.45,147.39,2.5103]
[1718295375801,2.5095,147.44,147.39,2.5103]
[1718295375962,2.5096,147.43,147.38,2.5104]
[1718295376166,2.5098,147.42,147.38,2.5104]
[1718295376364,2.5097,147.43,147.38,2.5104]
[1718295376681,2.5102,147.4,147.34,11.6204]
[1718295376882,2.51,147.41,147.37,2.5106]
[1718295377070,2.5099,147.42,147.38,2.5105]
[1718295377581,12.5477,147.44,147.35,32.5549]
[1718295377582,2.51,147.41,147.37,2.5105]
[1718295377763,2.5099,147.42,147.37,2.5105]
[1718295378163,2.51,147.41,147.37,2.5105]
[1718295378592,2.5102,147.4,147.35,22.5109]
[1718295378788,17.5693,147.42,147.35,20.0]
[1718295378972,2.5104,147.39,147.35,22.5109]
[1718295379172,50.7001,147.41,147.35,22.5109]
[1718295379173,10.2082,147.44,147.35,20.0]
[1718295379505,20.0,147.45,147.35,20.0]
[1718295379506,0.17,147.43,147.36,10.0431]
[1718295379668,2.5095,147.44,147.4,2.5101]
[1718295380000,2.5096,147.43,147.39,2.5102]
[1718295380306,2.5098,147.42,147.36,5.0216]
[1718295380481,5.0194,147.43,147.37,20.0]
[1718295380669,2.51,147.41,147.37,22.5106]
[1718295381065,5.0194,147.43,147.38,2.5104]
[1718295381066,2.5099,147.42,147.38,2.5104]
[1718295381285,2.5095,147.44,147.39,5.0206]
[1718295381865,0.17,147.43,147.36,20.0]
[1718295382106,2.51,147.41,147.37,2.5106]
[1718295382680,2.51,147.41,147.36,22.5107]
[1718295382886,0.17,147.43,147.34,6.5984]
[1718295383189,2.5106,147.38,147.35,20.0]
[1718295383396,2.5104,147.39,147.35,22.5109]
[1718295383599,17.7405,147.41,147.35,22.5109]
[1718295383600,2.5102,147.4,147.35,22.5109]
[1718295383970,2.5101,147.41,147.35,20.0]
[1718295384174,2.6799,147.42,147.38,2.5104]
[1718295384970,0.51,147.43,147.36,12.5541]
[1718295385188,2.5099,147.42,147.38,2.5104]
[1718295385389,0.34,147.43,147.38,2.5104]
[1718295385603,0.17,147.43,147.39,2.5101]
[1718295385813,2.5096,147.44,147.4,2.51]
[1718295385995,273.3553,147.49,147.41,5.0198]
[1718295386297,253.1,147.49,147.42,12.549]
[1718295386603,2.5086,147.49,147.45,2.5092]
[1718295387506,2.5086,147.49,147.43,20.0]
[1718295387871,2.5086,147.49,147.45,2.5093]
[1718295388181,2.5086,147.49,147.44,2.5093]
[1718295389095,2.5086,147.49,147.41,8.9774]
[1718295389096,2.5092,147.46,147.41,8.9774]
[1718295389393,2.5092,147.46,147.42,22.5097]
[1718295389779,2.5092,147.46,147.42,20.0]
[1718295390099,2.509,147.47,147.42,20.0]
[1718295390272,2.5087,147.49,147.45,2.5092]
[1718295390469,0.17,147.5,147.45,2.5091]
[1718295390703,2.5087,147.49,147.45,2.5091]
[1718295390908,2.5085,147.5,147.43,5.0193]
[1718295391078,33.5427,147.52,147.48,2.5087]
[1718295391079,2.5082,147.52,147.48,2.5087]
[1718295391281,2.508,147.53,147.48,2.5086]
[1718295391481,6.0214,147.54,147.48,2.5086]
[1718295391794,2.508,147.53,147.48,2.5086]
[1718295391973,2.5081,147.52,147.48,2.5086]
[1718295392170,2.5078,147.54,147.47,5.0178]
[1718295392374,2.5079,147.54,147.49,2.5085]
[1718295392593,2.5077,147.55,147.5,2.5084]
[1718295392790,2.5078,147.54,147.5,2.5084]
[1718295392999,2.5079,147.53,147.49,2.5085]
[1718295393306,2.5079,147.53,147.48,18.8566]
[1718295393509,7.5235,147.54,147.48,16.3479]
[1718295393678,5.015,147.56,147.48,16.3479]
[1718295393876,2.508,147.53,147.48,18.8566]
[1718295394271,2.5082,147.52,147.48,18.8566]
[1718295394574,2.5085,147.5,147.45,2.5092]
[1718295394774,2.5083,147.51,147.44,20.8494]
[1718295395013,0.17,147.56,147.44,15.8307]
[1718295395306,20.68,147.56,147.48,5.0176]
[1718295395489,2.5078,147.54,147.5,2.5084]
[1718295395688,2.5078,147.54,147.48,5.0176]
[1718295395689,2.5078,147.54,147.49,2.5085]
[1718295396094,28.2025,147.56,147.48,2.5087]
[1718295396382,20.68,147.56,147.49,2.5086]
[1718295396604,20.68,147.56,147.47,5.0179]
[1718295396782,0.68,147.56,147.5,2.5083]
[1718295397100,2.5078,147.54,147.49,2.5085]
[1718295397298,2.508,147.53,147.49,2.5085]
[1718295397605,6.5006,147.58,147.53,2.5078]
[1718295397606,2.5072,147.58,147.53,2.5078]
[1718295397817,15.4072,147.6,147.48,6.3456]
[1718295397984,15.4072,147.6,147.51,2.5082]
[1718295397985,2.5075,147.56,147.51,2.5082]
[1718295398185,2.5076,147.55,147.5,2.5083]
[1718295398598,2.5075,147.56,147.51,2.5082]
[1718295399214,2.5073,147.57,147.52,2.5081]
[1718295399508,2.5071,147.58,147.53,2.5078]
[1718295400431,2.5069,147.59,147.54,2.5077]
[1718295400589,2.5069,147.59,147.55,2.5076]
[1718295400794,2.5069,147.59,147.54,2.5077]
[1718295401092,2.5068,147.6,147.55,2.5074]
[1718295401291,2.5065,147.62,147.54,7.5233]
[1718295401598,2.5065,147.62,147.57,2.5072]
[1718295401794,2.5063,147.63,147.58,2.507]
[1718295402127,20.2078,147.64,147.57,2.5072]
[1718295402287,2.5066,147.61,147.56,2.5074]
[1718295402488,2.507,147.59,147.52,10.0324]
[1718295402682,2.5068,147.6,147.55,2.5075]
[1718295403403,2.5068,147.6,147.51,16.0669]
[1718295403404,2.5077,147.55,147.51,15.5569]
[1718295403715,2.5077,147.55,147.5,2.5084]
[1718295403716,2.5076,147.55,147.5,2.5084]
[1718295403895,20.0,147.59,147.5,7.5253]
[1718295404095,22.507,147.59,147.54,2.5077]
[1718295404301,0.68,147.6,147.54,2.5077]
[1718295404494,0.17,147.59,147.55,2.5074]
[1718295404683,2.5071,147.59,147.53,2.5078]
[1718295404882,2.5071,147.58,147.53,2.5078]
[1718295405111,2.5073,147.57,147.52,2.508]
[1718295405317,2.5077,147.55,147.5,2.5084]
[1718295405493,2.5077,147.55,147.5,2.5083]
[1718295405700,2.5076,147.55,147.5,2.5084]
[1718295405898,2.5078,147.54,147.49,2.5085]
[1718295406081,2.5078,147.54,147.48,6.3456]
[1718295406082,2.5079,147.53,147.48,8.8543]
[1718295406288,0.17,147.56,147.52,2.5081]
[1718295406484,2.6775,147.56,147.51,2.5082]
[1718295406903,2.6775,147.56,147.49,5.0171]
[1718295406904,2.5078,147.54,147.49,2.5085]
[1718295407297,2.5076,147.55,147.5,2.5084]
[1718295407599,2.6775,147.56,147.48,11.3631]
[1718295407801,2.5076,147.55,147.5,2.5083]
[1718295407998,0.17,147.56,147.49,5.0169]